Cogmind - Beta 16.1 @@@ ROGUE MODE // 2026.04.13 @ 17:33:57 Player: Thqwib-Linux Result: Self-destructed Performance ------------- Evolutions (9) 4500 Regions Visited (22) 4400 Robots Destroyed (267) 1335 Value Destroyed (12647) 12647 Prototype IDs (36) 720 Alien Tech Used (1) 200 Bonus (6436) 6436 TOTAL SCORE: 30238 Bonus ------- High Alert Combat Kills 1108 Follower Combat Kills 1749 Entered DSFs 500 Acquired ECA 300 Met Warlord at Base 500 MAIN.C Attacked Warlord 500 Built Enhanced Grunts 300 A7 Reached Mainframe 300 Met R17 at Cetus 500 Met R17 at Research 2000 Scanned by Researcher 500 Friendly Fire -1821 Cogmind --------- Core Integrity 274/1600 Matter 234/300 Energy 224/500 System Corruption 47% Temperature Cool (0) Movement Walking (170) Ox1 Location -1/Access Parts ------- > --- POWER (3) -------- (None) > --- PROPULSION (6) --- Enhanced Biometal Leg Enhanced Biometal Leg Enhanced Biometal Leg Enhanced Biometal Leg Faulty Enhanced Biometal Leg > --- UTILITY (13) ----- Advanced Cooling System Advanced Cooling System Huge Storage Unit Improved Energy Well Spectral Analyzer Advanced Sensor Array Experimental Signal Interpreter Advanced Salvage Targeting Computer Advanced Targeting Computer Experimental Targeting Computer Experimental Core Analyzer Experimental Focal Shield Advanced Dynamic Insulation System > --- WEAPON (3) ------- Enhanced Nova Cannon Enhanced Hardcell Cannon > --- INVENTORY (25) --- Experimental Biometal Medium Treads Experimental Biometal Medium Treads Experimental Biometal Medium Treads Experimental Biometal Medium Treads Experimental Biometal Medium Treads Myomer Leg Graphene Brace Advanced Point Defense System Hacking Drone Bay (1/1) Subatomic Replicator Compact HERF Cannon KE Penetrator KE Penetrator Fusion Bomb Launcher Advanced Remote Datajack Peak State ------------ > --- POWER ------------ Quantum Reactor Quantum Reactor Improved Quantum Reactor > --- PROPULSION ------- Biometal Medium Treads Biometal Medium Treads Centrium Heavy Treads Centrium Heavy Treads > --- UTILITY ---------- Advanced Cooling System Huge Storage Unit Experimental Signal Interpreter Experimental Terrain Scan Processor Advanced Salvage Targeting Computer Experimental Targeting Computer Experimental Core Analyzer Experimental Core Analyzer Improved Transmission Jammer Layered Heavy Armor Plating Improved Hardlight Generator Advanced Force Field > --- WEAPON ----------- Heavy Linear Accelerator Fusion Bomb Launcher > --- INVENTORY -------- Reinforced Antimatter Reactor Quantum Reactor Improved Quantum Reactor Armored Medium Treads Biometal Medium Treads Advanced Cryofiber Web Advanced Sensor Array Advanced Terrain Scanner Centrium Light Armor Plating Centrium Light Armor Plating Graphene Brace Advanced Point Defense System Advanced Point Defense System Hacking Drone Bay Subatomic Replicator Dispersion Rifle Dispersion Rifle Vortex Rifle Vortex Rail Helical Railgun Helical Railgun Helical Railgun Helical Railgun Bore Cannon Advanced Remote Datajack [Rating: 210] Favorites ----------- Power Quantum Reactor Engine Heavy Ion Engine Power Core Micro Fission Core Reactor Quantum Reactor Propulsion Centrium Heavy Treads Treads Centrium Heavy Treads Leg Biometal Leg Wheel Armored Huge Wheel Utility Huge Storage Unit Device Advanced Sensor Array Storage Huge Storage Unit Processor Experimental Core Analyzer Hackware Advanced Hacking Suite Protection Centrium Medium Armor Plating Weapon Dispersion Rifle Energy Gun Dispersion Rifle Energy Cannon Plasma Cannon Ballistic Gun Advanced KE Penetrator Ballistic Cannon Heavy Linear Accelerator Launcher Rocket Launcher Special Weapon Improved Plasma Cutter Impact Weapon Great Maul Build | -11 -10 -9 -9 -7 -6 -6 -6 -5 -5 -5 -5 -5 -4 -4 -4 -4 -4 -3 -3 -3 -2 -1 ------- Run | Yrd Mat Mat Min Zio Pro Fac DSF Fac Ext Cet Arc Hub Fac Was Fac Upp War Pro Res Qua Res Acc Slots Evolved 18 | . . 2 . . . 6 . 2 . . . . 2 . . . . . 2 . 2 2 Power 2 | . . . . . . . . 1 . . . . . . . . . . . . 1 . Propulsion 4 | . . . . . . 2 . . . . . . 2 . . . . . . . . . Utility 11 | . . 1 . . . 4 . 1 . . . . . . . . . . 2 . 1 2 Weapon 1 | . . 1 . . . . . . . . . . . . . . . . . . . . Parts Attached 307 | 4 9 26 3 4 12 2 19 17 38 6 . . 8 1 9 1 . 1 18 21 20 88 Power 44 | . 1 4 1 . 1 1 2 2 4 1 . . 1 . 1 . . . 3 2 3 17 Engine 10 | . 1 3 1 . 1 1 1 1 1 . . . . . . . . . . . . . Core 6 | . . 1 . . . . 1 1 3 . . . . . . . . . . . . . Reactor 28 | . . . . . . . . . . 1 . . 1 . 1 . . . 3 2 3 17 Propulsion 75 | 3 2 6 . 1 4 . 8 7 9 1 . . 2 . . . . . 3 5 . 24 Treads 33 | 1 1 4 . 1 3 . 2 2 6 1 . . . . . . . . 1 4 . 7 Leg 17 | . . . . . . . . 3 . . . . . . . . . . . . . 14 Wheel 25 | 2 1 2 . . 1 . 6 2 3 . . . 2 . . . . . 2 1 . 3 Hover . | . . . . . . . . . . . . . . . . . . . . . . . Flight . | . . . . . . . . . . . . . . . . . . . . . . . Utility 106 | 1 2 7 1 2 3 1 4 4 14 4 . . 4 . 5 . . . 10 6 15 23 Device 53 | 1 . 3 . 1 2 1 1 . 9 . . . 3 . 2 . . . 7 2 7 14 Storage 9 | . 2 . . . . . 1 1 1 . . . . . 1 . . . . 1 . 2 Processor 17 | . . . . 1 . . 1 . . . . . 1 . . . . . 3 1 7 3 Hackware 5 | . . . . . . . . 2 1 1 . . . . 1 . . . . . . . Protection 22 | . . 4 1 . 1 . 1 1 3 3 . . . . 1 . . . . 2 1 4 Artifact . | . . . . . . . . . . . . . . . . . . . . . . . Weapon 82 | . 4 9 1 1 4 . 5 4 11 . . . 1 1 3 1 . 1 2 8 2 24 Energy Gun 22 | . . 2 . . 1 . 3 2 3 . . . . . 1 . . . 1 2 1 6 Energy Cannon 4 | . . . . . . . . . 1 . . . . . . . . . . . 1 2 Ballistic Gun 37 | . 4 5 . . 3 . 2 1 2 . . . 1 1 . 1 . 1 1 3 . 12 Ballistic Cannon 13 | . . 2 . 1 . . . . 4 . . . . . 1 . . . . 2 . 3 Launcher 4 | . . . 1 . . . . . . . . . . . 1 . . . . 1 . 1 Special Weapon 1 | . . . . . . . . . 1 . . . . . . . . . . . . . Impact Weapon 1 | . . . . . . . . 1 . . . . . . . . . . . . . . Slashing Weapon . | . . . . . . . . . . . . . . . . . . . . . . . Piercing Weapon . | . . . . . . . . . . . . . . . . . . . . . . . Special Melee Weapon . | . . . . . . . . . . . . . . . . . . . . . . . Unidentified Prototypes 26 | . . 1 . 1 . . . 1 . 2 . . 1 . 1 . . . 3 2 6 8 Corrupted Parts 3 | . . . . . . 1 . . . 2 . . . . . . . . . . . . System Corruption 24 | . . . . . . 3 . . . 21 . . . . . . . . . . . . Parts Lost 118 | . 1 6 2 . 10 . 14 . 6 . . . 2 1 . 2 . . . 9 . 65 Power 23 | . . . 1 . 1 . 1 . . . . . . . . . . . . 1 . 19 Propulsion 30 | . 1 1 . . 3 . 7 . 2 . . . . . . 1 . . . 4 . 11 Utility 36 | . . 4 1 . 2 . 2 . 3 . . . 1 1 . 1 . . . 4 . 17 Weapon 29 | . . 1 . . 4 . 4 . 1 . . . 1 . . . . . . . . 18 Highest Loss Streak 24 | . 1 2 2 . 8 . 10 . 5 . . . 2 1 . 1 . . . 6 . 24 To Critical Strikes 1 | . . . . . . . . . . . . . . . . . . . . . . 1 Average Backups 17 | 4 6 12 14 15 13 6 7 9 14 16 20 21 22 21 21 22 22 23 22 22 24 15 Power 1 | 1 1 1 . . . . . . . 1 3 3 2 2 2 2 2 2 2 2 2 1 Propulsion 1 | 2 2 3 4 3 2 . . . 1 2 3 3 2 2 2 2 2 2 2 . . 1 Utility 6 | . . 2 2 3 3 2 2 5 6 7 8 9 8 9 9 7 7 7 7 9 9 5 Weapon 7 | 1 2 6 7 8 6 4 3 3 4 4 6 6 8 7 7 9 9 10 10 8 8 5 Tool/Special . | . . . . . . . . . . . . . . . . . . . . . . . Unused Backups 61 | 8 3 15 . . 5 . 1 . 2 2 . . 3 . 3 . 1 . 3 3 5 7 Power 11 | 1 . 4 . . . . 1 . . . . . . . . . . . 2 . 2 1 Propulsion 10 | 4 . 3 . . . . . . 1 1 . . . . . . . . . . . 1 Utility 11 | 1 1 . . . 2 . . . 1 . . . 1 . 1 . . . 1 2 . 1 Weapon 26 | 2 2 8 . . 3 . . . . 1 . . 2 . 2 . 1 . . 1 2 2 Tool/Special 3 | . . . . . . . . . . . . . . . . . . . . . 1 2 Average Slot Usage (%) 89 | . 99 97 98 100 97 64 75 88 95 83 86 88 84 87 88 83 84 84 89 83 81 86 Engine 3 | . 14 7 11 11 9 6 3 5 3 5 5 5 . . . . . . . . . . Core 1 | . . 3 . . . . . 3 7 4 . . . . . . . . . . . . Reactor 5 | . . . . . . . . . . . 5 5 9 10 10 10 10 10 9 9 13 10 Treads 10 | . 13 10 11 11 12 13 4 4 10 5 5 5 5 5 5 5 5 5 4 11 17 11 Wheel 7 | . 13 11 11 11 9 . 15 8 7 5 5 5 10 15 15 10 10 10 13 6 . . Device 12 | . 14 10 11 5 7 10 12 5 17 19 17 17 20 19 15 12 10 9 14 11 8 17 Storage 6 | . 14 11 11 11 11 6 6 5 5 5 5 5 5 5 5 5 5 5 4 4 4 4 Processor 13 | . . . . 5 11 6 9 11 11 11 11 11 6 10 10 10 10 10 14 21 24 23 Hackware 2 | . . . . . . . . 2 1 3 5 5 5 5 5 10 10 10 3 . . . Protection 5 | . . 10 11 10 2 . 1 10 7 4 5 5 4 . 3 2 5 5 8 4 4 2 Energy Gun 3 | . . 3 . . 1 6 9 6 7 . . . . . 5 2 5 3 . 4 4 2 Ballistic Gun 9 | . 28 21 29 27 20 6 5 5 1 . . . 4 5 5 7 10 11 13 3 . 4 Ballistic Cannon 4 | . . 7 . 5 11 6 1 . 6 7 10 11 5 5 5 4 . . . 2 4 2 Peak Build Rating 210 | 7 7 21 21 30 30 32 49 65 84 107 107 108 121 125 130 127 126 129 155 165 201 210 Average Rating 106 | 6 6 15 20 22 27 31 34 53 74 90 106 107 116 120 123 121 124 125 143 154 192 180 On Entrance 80 | 6 7 7 21 21 24 26 32 25 65 79 93 107 108 113 112 120 124 126 124 153 162 199 Avg Prop Armor Cover (%) 8 | 12 11 5 6 6 4 . 9 12 10 10 9 9 9 11 9 9 10 7 8 10 . 9 Naked Turns . | . . . . . . . . . . . . . . . . . . . . . . . Heaviest Build 211 | 12 28 48 46 45 45 43 54 70 83 154 154 154 156 155 160 152 148 148 178 191 209 211 Greatest Support 240 | 16 20 20 12 12 53 46 52 59 46 28 28 28 80 60 80 80 44 80 60 240 230 230 Greatest Overweight (x) 15 | 1 1 3 3 3 3 . 3 4 2 5 5 5 3 2 2 3 3 3 3 5 . 15 Average Overweight (x) 1 | . . 2 2 3 1 . 1 2 1 2 4 5 2 2 1 2 3 1 2 2 . . Largest Inventory Capacity 25 | 8 15 15 15 15 15 15 15 25 15 25 25 25 25 25 25 25 25 25 25 25 25 25 Average Capacity 20 | 8 9 15 15 15 15 15 15 15 15 16 25 25 25 25 25 25 25 25 25 25 25 23 Most Carried 25 | 7 8 15 15 15 15 7 11 13 15 25 25 24 25 24 25 25 25 25 25 25 25 25 Average Carried 18 | 4 6 12 14 14 13 6 7 10 14 16 22 23 24 23 23 24 24 25 24 24 24 15 Final Capacity 25 | 8 15 15 15 15 15 15 15 15 15 25 25 25 25 25 25 25 25 25 25 25 25 25 Final Carried 25 | 4 7 15 15 15 8 6 10 13 15 25 23 24 24 24 25 24 25 25 25 23 25 15 Class Distribution -------------------- 58% | Scavenger-Tank 9% | Gunner 8% | Tank 6% | Mutant 5% | Scavenger-Skirmisher 5% | Scavenger-Gunner 4% | Scavenger-Mutant Dominant Class ---------------- Mutant | -10/Materials Scavenger-Tank | -9/Materials Tank | -9/Mines Gunner | -7/Zion Gunner | -6/Proximity Caves Gunner | -6/Factory Mutant | -6/DSF Mutant | -5/Factory Scavenger-Tank | -5/Extension Scavenger-Tank | -5/Cetus Scavenger-Tank | -5/Archives Scavenger-Tank | -5/Hub_04(d) Scavenger-Tank | -4/Factory Scavenger-Tank | -4/Waste Scavenger-Tank | -4/Factory Scavenger-Skirmisher | -4/Upper Caves Scavenger-Tank | -4/Warlord Scavenger-Tank | -3/Proximity Caves Scavenger-Tank | -3/Research Scavenger-Tank | -3/Quarantine Scavenger-Tank | -2/Research Scavenger-Gunner | -1/Access Resources | -11 -10 -9 -9 -7 -6 -6 -6 -5 -5 -5 -5 -5 -4 -4 -4 -4 -4 -3 -3 -3 -2 -1 ----------- Run | Yrd Mat Mat Min Zio Pro Fac DSF Fac Ext Cet Arc Hub Fac Was Fac Upp War Pro Res Qua Res Acc Matter Collected 12105 | 260 384 1066 364 10 641 . 286 415 1422 368 135 61 223 154 287 313 . 330 900 1245 937 2304 Remotely . | . . . . . . . . . . . . . . . . . . . . . . . Salvage Created 14452 | 104 567 1656 284 . 655 . 610 265 2156 299 95 57 298 404 400 143 . 204 616 1861 556 3222 Parts 663 | 8 30 91 7 . 21 . 18 7 75 5 9 1 9 7 20 6 . 6 29 126 19 169 Haulers Intercepted 17 | . 2 5 . . . . . 1 3 . . . 1 . 1 . . . 1 2 . 1 Recyclers Shooed 15 | . 7 3 1 . . . . . 2 . . . . . . . . . . . . 2 Parts Field Recycled . | . . . . . . . . . . . . . . . . . . . . . . . Retrieved Matter . | . . . . . . . . . . . . . . . . . . . . . . . Parts Self-Destructed 40 | . . . . . 28 . . . . . . . . . . 6 . 6 . . . . Prevented 4 | . . . . . 4 . . . . . . . . . . . . . . . . . Parts Restored 1 | . . . . . . . . . . . . . . . . . . . 1 . . . Broken 1 | . . . . . . . . . . . . . . . . . . . 1 . . . Kills | -11 -10 -9 -9 -7 -6 -6 -6 -5 -5 -5 -5 -5 -4 -4 -4 -4 -4 -3 -3 -3 -2 -1 ------- Run | Yrd Mat Mat Min Zio Pro Fac DSF Fac Ext Cet Arc Hub Fac Was Fac Upp War Pro Res Qua Res Acc Combat Hostiles Destroyed 213 | . 11 32 14 . 13 . 8 2 15 4 1 1 3 1 4 2 . 3 7 27 10 55 Melee 1 | . . . . . 1 . . . . . . . . . . . . . . . . . Guns 113 | . 11 23 5 . 5 . 6 2 11 . . . 1 1 2 2 . 3 7 12 3 19 Cannons 68 | . . 9 . . 7 . 2 . 4 4 1 1 2 . 2 . . . . 9 7 20 AOE 29 | . . . 9 . . . . . . . . . . . . . . . . 5 . 15 Classes Destroyed 26 | 2 3 6 1 . 1 . 2 . 2 . . . . 1 1 . . . 2 2 1 2 Worker 7 | . . 1 1 . . . . . 1 . . . . . . . . . 1 1 . 2 Builder 6 | . . 2 . . . . . . . . . . 1 . . . . . . 1 . 2 Tunneler 2 | 1 . . 1 . . . . . . . . . . . . . . . . . . . Hauler 17 | . 2 5 . . . . . 1 3 . . . 1 . 1 . . . 1 2 . 1 Recycler 15 | 1 2 3 2 . . . . . 5 . . . . . . . . . . . . 2 Operator 4 | . . 1 . . . . . 1 1 . 1 . . . . . . . . . . . Watcher 7 | . . 1 . . . . . . 2 . . . . . . . . . . 2 . 2 Swarmer 52 | . 6 9 . . 2 . . . 4 . . . 1 . . . . 1 1 4 . 24 Saboteur 1 | . . . . . . . . . . . . . . . . . . . . . . 1 Grunt 50 | . 5 12 . . 7 . 4 2 4 . . 1 . . . . . 1 2 . 4 8 Brawler 7 | . . 1 . . 2 . 1 . . . . . . . . . . . 1 . . 2 Duelist 2 | . . . . . . . 1 . . . . . . . . . . . . . 1 . Protector 2 | . . . . . 1 . . . . . . . . . . . . . 1 . . . Researcher 4 | . . . . . . . . . . . . . . . . . . . . 4 . . Sentry 26 | . . 10 . . 1 . 1 . 5 . 1 . . . 2 . . 1 . 3 2 . Demolisher 1 | . . . . . . . . . . . . . . . . . . . 1 . . . Specialist 2 | . . . . . . . . . . . . . . . . . . . . 2 . . Hunter 16 | . . . . . . . . . . . . . 2 . . 2 . . . 2 . 10 Programmer 23 | . . . . . . . . . . . . . . . 2 . . . 1 16 1 3 Heavy 1 | . . . . . . . 1 . . . . . . . . . . . . . . . Q-Series 7 | . . . . . . . . . . . . . . . . . . . . . . 7 Behemoth 2 | . . . . . . . . . 2 . . . . . . . . . . . . . Compactor 1 | . . . . . . . . . . . . . . 1 . . . . . . . . Cetus Guard 4 | . . . . . . . . . . 4 . . . . . . . . . . . . Striker 2 | . . . . . . . . . . . . . . . . . . . . . 2 . Assembled 14 | . . . 14 . . . . . . . . . . . . . . . . . . . Thug 1 | . . . . . . . . . . . . . . 1 . . . . . . . . Savage 2 | . . . . . 1 . . . 1 . . . . . . . . . . . . . Butcher 1 | . . . . . . . . . . 1 . . . . . . . . . . . . Guerrilla 1 | . . . . . . . . . 1 . . . . . . . . . . . . . Revision 1 | . . . . . . . . . . . . . . . . . . . 1 . . . Best Kill Streak 15 | 2 4 5 15 . 3 . 4 1 3 2 2 1 3 1 3 2 . 2 2 11 6 14 Combat Bots Only 14 | . 4 4 14 . 3 . 4 1 3 2 1 1 2 1 2 2 . 2 2 9 6 9 Max Kills in Single Turn 5 | 1 2 2 4 . 1 . 1 1 2 1 1 1 2 1 1 1 . 1 1 5 1 4 Gunslinging 1 | . 1 . . . . . . . . . . . . . . . . . . . . . Exploded 4 | . . . 4 . . . . . . . . . . . . . . . . 4 . 3 Melee 1 | . . . . . 1 . . . . . . . . . . . . . . . . . Uniques/NPCs Destroyed . | . . . . . . . . . . . . . . . . . . . . . . . Combat | -11 -10 -9 -9 -7 -6 -6 -6 -5 -5 -5 -5 -5 -4 -4 -4 -4 -4 -3 -3 -3 -2 -1 -------- Run | Yrd Mat Mat Min Zio Pro Fac DSF Fac Ext Cet Arc Hub Fac Was Fac Upp War Pro Res Qua Res Acc Hostile Shots Fired 2114 | . 38 141 46 . 112 . 147 7 188 12 . 7 32 1 16 56 . 14 61 312 61 863 Missed 495 | . 9 36 9 . 23 . 39 3 45 4 . 2 10 . 4 18 . 2 14 61 11 205 Intercepted 2 | . . . . . . . . . . . . . . . . . . . 2 . . . Hits 1619 | . 29 105 37 . 89 . 108 4 143 8 . 5 22 1 12 38 . 12 47 251 50 658 Melee 19 | . . . 8 . . . 6 . . . . . . 1 . . . . . . 3 1 Projectile 1600 | . 29 105 29 . 89 . 102 4 143 8 . 5 22 . 12 38 . 12 47 251 47 657 AOE 5 | . . . 5 . . . . . . . . . . . . . . . . . . . Critical Strikes 55 | . 1 4 . . 5 . 3 . 6 1 . . 2 1 . 1 . . 1 11 1 18 Actively Blocked 20 | . . . . . . . . . 2 1 . . 2 1 . . . . . 2 . 12 Part Disruptions 4 | . . . . . . . . . . . . . . . . . . . . 1 . 3 Damage Taken 30589 | . 317 1216 708 . 1800 . 2075 131 2199 227 18 137 282 22 183 569 . 136 546 5166 663 14194 Core 2709 | . 40 131 57 . 142 . 351 22 139 . . 15 22 . 22 43 . . 40 333 26 1326 Absorbed by Shields 6672 | . . . . . . . 78 . 506 82 7 49 105 23 169 226 . 140 396 1643 685 2563 Reduced by Siege Mode 919 | . . . . . . . . . . . . 3 . . . 6 . . 31 520 32 327 Redirected to Shielding 26 | . . . . . . . 14 5 7 . . . . . . . . . . . . . Ignored by Resistances 986 | . . . . . . . . . . . . . . . . . . . . . . 986 Regen/Repaired (Parts) 856 | . 85 152 . 41 . . . 77 . . . . . . . . 81 . . . 420 . Core Remaining (%) 74 | 100 84 . . . 17 . 58 . . . . 82 . . . . . 92 . 67 98 . Volleys Fired 763 | 5 64 102 20 . 51 . 36 15 101 11 7 3 16 8 16 18 . 7 36 83 31 133 Largest 3 | 2 2 3 3 . 3 . 3 3 3 3 3 3 3 3 3 3 . 3 3 3 2 3 Hottest 247 | 40 40 112 79 . 131 . 164 159 212 179 179 179 179 166 178 178 . 153 113 216 158 247 Shots Fired 1918 | 10 128 301 52 . 153 . 102 41 272 33 18 9 46 25 31 32 . 21 108 176 54 306 Gun 1359 | 10 128 230 48 . 102 . 86 41 180 . . . 14 9 20 14 . 21 108 120 23 205 Cannon 531 | . . 71 . . 51 . 16 . 88 33 18 9 32 16 11 11 . . . 52 31 92 Launcher 24 | . . . 4 . . . . . . . . . . . . 7 . . . 4 . 9 Special 4 | . . . . . . . . . 4 . . . . . . . . . . . . . Kinetic 1343 | 10 128 264 48 . 150 . 45 16 115 22 13 6 30 17 22 18 . 17 102 84 31 205 Thermal 510 | . . 37 . . 3 . 57 25 157 11 5 3 16 8 9 7 . 4 . 88 7 73 Explosive 24 | . . . 4 . . . . . . . . . . . . 7 . . . 4 . 9 Electromagnetic 13 | . . . . . . . . . . . . . . . . . . . . . . 13 Entropic 28 | . . . . . . . . . . . . . . . . . . . 6 . 16 6 Robot Hit Streak 66 | 3 10 22 7 . 19 . 28 40 24 7 7 3 12 11 9 5 . 10 11 31 12 66 Robot Miss Streak 6 | 2 3 5 2 . 4 . 1 2 6 3 3 3 4 2 3 2 . 2 3 4 3 3 Penetration Max 2 | . . . . . . . 1 . 2 1 1 . 1 . . . . . 1 . 1 1 Secondary Targets 13 | . 1 1 1 . . . 2 . 1 . . . . . . . . . 2 2 . 3 Max Gunslinging Chain 1 | . 1 1 1 . . . 1 . 1 . . . . . . . . . 1 1 . 1 Shots Hit Robots 1343 | 6 85 195 35 . 116 . 85 33 185 19 10 4 28 16 15 11 . 13 81 131 36 239 Core Hits 559 | 4 28 67 35 . 42 . 31 9 67 10 12 1 9 3 7 6 . 7 24 55 17 125 Critical Kills 44 | . 2 . 1 . . . . . 9 4 2 1 2 2 4 . . . 3 10 1 3 Critical Parts Destroyed 56 | . . . . . . . 2 . 10 7 1 2 7 1 1 . . . 8 11 1 5 Critical Strikes 149 | . 2 7 1 . 4 . 8 2 28 11 5 3 9 5 6 2 . . 11 29 2 14 Burn 20 | . . 6 . . 1 . 6 2 5 . . . . . . . . . . . . . Destroy 110 | . 2 . 1 . 1 . 2 . 20 11 5 3 9 5 6 . . . 10 23 2 10 Blast 17 | . . 1 . . 2 . . . 3 . . . . . . 2 . . . 6 . 3 Corrupt 1 | . . . . . . . . . . . . . . . . . . . . . . 1 Detonate 1 | . . . . . . . . . . . . . . . . . . . 1 . . . Melee Attacks 20 | . . . . . . . . . 20 . . . . . . . . . . . . . Impact 20 | . . . . . . . . . 20 . . . . . . . . . . . . . Slashing . | . . . . . . . . . . . . . . . . . . . . . . . Piercing . | . . . . . . . . . . . . . . . . . . . . . . . Sneak Attacks . | . . . . . . . . . . . . . . . . . . . . . . . Combat Hostiles . | . . . . . . . . . . . . . . . . . . . . . . . Follow-up Attacks . | . . . . . . . . . . . . . . . . . . . . . . . Damage Inflicted 38587 | 64 976 3030 1175 . 2124 . 1672 646 4958 505 323 82 748 553 430 284 . 279 2567 6059 2166 9946 Guns 21297 | 64 976 2259 504 . 1348 . 1433 641 3339 . . . 277 240 314 174 . 279 2295 2480 752 3922 Cannons 12054 | . . 771 . . 773 . 239 . 1613 505 323 82 471 313 116 110 . . . 2465 1414 2859 Explosions 5137 | . . . 671 . . . . . . . . . . . . . . . 272 1114 . 3080 Melee . | . . . . . . . . . . . . . . . . . . . . . . . Ramming 99 | . . . . . 3 . . 5 6 . . . . . . . . . . . . 85 Kinetic 22050 | 64 976 2557 504 . 2053 . 788 265 1998 303 231 57 485 351 322 149 . 198 2054 3054 1414 4227 Thermal 10032 | . . 473 . . 68 . 884 376 2954 202 92 25 263 202 108 135 . 81 218 1891 114 1946 Explosive 4919 | . . . 671 . . . . . . . . . . . . . . . 54 1114 . 3080 Electromagnetic 330 | . . . . . . . . . . . . . . . . . . . . . . 330 Impact . | . . . . . . . . . . . . . . . . . . . . . . . Slashing . | . . . . . . . . . . . . . . . . . . . . . . . Piercing . | . . . . . . . . . . . . . . . . . . . . . . . Entropic 1157 | . . . . . . . . . . . . . . . . . . . 241 . 638 278 Highest Corruption 47 | . 3 . . . . 3 3 1 1 22 22 23 . 10 10 15 15 . 2 37 . 47 Average Corruption 10 | . 1 . . . . 3 3 1 1 10 22 22 . 10 10 12 15 . 1 20 . 22 Corruption Purged . | . . . . . . . . . . . . . . . . . . . . . . . Corruption Blocked . | . . . . . . . . . . . . . . . . . . . . . . . Effects 332 | . 5 . . . . . 6 3 13 17 12 6 . 2 20 53 2 . 21 89 . 83 Message Errors 84 | . 1 . . . . . . 1 4 5 4 3 . 1 6 13 . . 5 20 . 21 Matter Fused 76 | . 1 . . . . . 3 1 2 6 2 1 . . 5 12 1 . 3 29 . 10 Heat Flow Errors 38 | . 1 . . . . . . . 4 2 1 . . . 1 11 . . 5 7 . 6 Energy Discharges 27 | . 1 . . . . . . . . 2 1 1 . . . 5 . . 1 9 . 7 Parts Rejected 3 | . . . . . . . 2 . . . . . . . . . . . . 1 . . Parts Fused 2 | . . . . . . . . . . . 1 . . . . . . . 1 . . . Data Loss (minor) 31 | . . . . . . . 1 . 3 1 . 1 . . 2 3 1 . 3 7 . 9 Data Loss (major) 21 | . 1 . . . . . . 1 . 1 . . . . 3 6 . . 1 5 . 3 Misfires 12 | . . . . . . . . . . . . . . 1 1 1 . . 1 4 . 4 Alerts 4 | . . . . . . . . . . . . . . . . 1 . . . 2 . 1 Misdirections 10 | . . . . . . . . . . . . . . . 1 . . . . 2 . 7 Weapon Failures 24 | . . . . . . . . . . . 3 . . . 1 1 . . 1 3 . 15 Overload Shots . | . . . . . . . . . . . . . . . . . . . . . . . Overflow Damage 1062 | . . 6 20 . . . . . 29 22 . . 5 . . . . . 8 562 81 329 Projectiles 823 | . . 6 . . . . . . 29 22 . . 5 . . . . . . 530 81 150 Explosions 226 | . . . 20 . . . . . . . . . . . . . . . 8 32 . 166 Melee 13 | . . . . . . . . . . . . . . . . . . . . . . 13 Knockbacks 60 | . . 6 . . 7 . 1 . 10 . 1 . 1 . . 1 . . . 12 7 14 Impact . | . . . . . . . . . . . . . . . . . . . . . . . Kinetic 55 | . . 6 . . 5 . 1 . 10 . 1 . 1 . . 1 . . . 11 6 13 Secondary 5 | . . . . . 2 . . . . . . . . . . . . . . 1 1 1 Self-Inflicted Damage 357 | . . . . . . . . . . . . . . . . . . . . 230 . 127 Shots 6 | . . . . . . . . . . . . . . . . . . . . 3 . 3 Rammed 7 | . . . . . 1 . . 1 2 . . . . . . . . . . . . 3 Targets Rammed 10 | . . . . . 2 . . 1 2 . . . . . . . . . . . . 5 Kicked 2 | . . . . . . . . . . . . . . . . . . . . . . 2 Crushed 1 | . . . . . 1 . . . . . . . . . . . . . . . . . Highest Temperature 411 | . 244 315 14 . 95 . 21 350 411 256 161 219 211 173 234 296 . 378 326 281 366 220 Average Temperature 80 | . 77 49 9 . 36 . 8 126 125 128 63 114 71 85 80 107 . 143 107 89 38 45 Received Heat Transfer 3821 | . 120 381 240 . 531 . 769 36 489 12 . 41 . . 16 174 . 14 101 231 92 574 Effects 12 | . . . . . . . . 1 10 . . . . . . . . 1 . . . . Shutdowns 3 | . . . . . . . . . 3 . . . . . . . . . . . . . Energy Bleed 4 | . . . . . . . . 1 3 . . . . . . . . . . . . . Interference 1 | . . . . . . . . . 1 . . . . . . . . . . . . . Matter Decay 2 | . . . . . . . . . 1 . . . . . . . . 1 . . . . Damage (minor) 2 | . . . . . . . . . 2 . . . . . . . . . . . . . Siege Activations 29 | . . . . . . . . . . . . 1 1 . 3 2 . 1 5 7 6 3 Total Turns 505 | . . . . . . . . . . . . 4 13 . 16 31 . 50 59 203 56 73 Longest Duration 82 | . . . . . . . . . . . . 4 13 . 7 18 . 50 20 82 25 35 Martial Activations . | . . . . . . . . . . . . . . . . . . . . . . . Shielding Activations . | . . . . . . . . . . . . . . . . . . . . . . . Robots Disrupted . | . . . . . . . . . . . . . . . . . . . . . . . Combat Hostiles . | . . . . . . . . . . . . . . . . . . . . . . . Robots Corrupted 2 | . . . . . . . . . . . . . . . . . . . . . . 2 Combat Hostiles 1 | . . . . . . . . . . . . . . . . . . . . . . 1 Parts Fried 7 | . . . . . . . . . . . . . . . . . . . . . . 7 Impact Corruptions 3 | . . . . . . . . . . . . . . . . . . . . . . 3 Robots Melted 1 | . . . . . . . . 1 . . . . . . . . . . . . . . Combat Hostiles . | . . . . . . . . . . . . . . . . . . . . . . . Parts Melted 23 | . . 4 . . . . 1 3 8 . . . . . 1 . . . . 1 . 5 Heat Transferred 17106 | . . 1591 . . 250 . 2439 962 4984 400 200 50 500 400 148 185 . 111 150 2442 148 2146 Parts Sabotaged 1 | . . . . . . . . . . . . . . . . . . . . . . 1 Parts Stolen . | . . . . . . . . . . . . . . . . . . . . . . . Parts Stripped . | . . . . . . . . . . . . . . . . . . . . . . . Power Chain Reactions . | . . . . . . . . . . . . . . . . . . . . . . . Alert | -11 -10 -9 -9 -7 -6 -6 -6 -5 -5 -5 -5 -5 -4 -4 -4 -4 -4 -3 -3 -3 -2 -1 ------- Run | Yrd Mat Mat Min Zio Pro Fac DSF Fac Ext Cet Arc Hub Fac Was Fac Upp War Pro Res Qua Res Acc Maximum Alert Level 3 | . . 1 . . . . . . 1 1 1 2 2 . . . . . . 2 1 3 Low Security (%) 67 | 100 100 68 100 . . 100 100 100 90 22 25 28 . 100 100 . . . 100 28 87 22 Level 1 17 | . . 31 . . . . . . 9 77 74 43 49 . . . . . . 41 12 1 Level 2 13 | . . . . . . . . . . . . 28 49 . . . . . . 30 . 65 Level 3 1 | . . . . . . . . . . . . . . . . . . . . . . 10 Level 4 . | . . . . . . . . . . . . . . . . . . . . . . . Level 5 . | . . . . . . . . . . . . . . . . . . . . . . . High Security . | . . . . . . . . . . . . . . . . . . . . . . . Max Security . | . . . . . . . . . . . . . . . . . . . . . . . Sterilizations 1 | . . . . . . . 1 . . . . . . . . . . . . . . . Peak Influence 883 | 5 160 334 61 . . 37 148 68 375 313 264 442 542 180 77 . . . 68 574 344 883 Initial 321 | . . . 51 . . 37 18 46 17 208 96 71 211 180 61 . . . . 11 321 98 Average 158 | 2 62 132 34 . . 35 82 15 72 239 209 260 369 153 24 . . . 10 261 71 466 Influence Increases 8928 | 10 312 1072 59 . 522 . 210 122 1084 350 208 421 602 8 164 65 . 60 226 1107 319 2007 Destroy 0b10 Robot/C 4760 | . 220 640 . . 360 . 160 40 540 160 80 140 200 . 80 40 . 60 120 620 200 1100 Destroy 0b10 Robot/NC 330 | 10 20 65 20 . 5 . 5 10 60 10 5 10 15 . 5 . . . 15 30 . 45 Destroy Leader 884 | . 44 202 . . 50 . 30 12 64 . . 30 44 . 32 10 . . 32 88 50 196 Allied During Kill 877 | . . . . . 47 . . . 212 129 85 180 224 . . . . . . . . . Successful Hack 226 | . 28 36 . . . . . 54 12 5 . . 16 . 7 . . . 10 58 . . Disable Machine 375 | . . 15 15 . . . . . 75 . 30 15 60 . 30 . . . 15 60 15 45 Anti-Garrison Action 150 | . . . . . . . . . . . . . . . . . . . . . . 150 Destroy Structure 771 | . . 9 24 . . . . 6 46 46 8 46 28 8 10 . . . 34 146 39 321 Lose Combat Pursuer 555 | . . 105 . . 60 . 15 . 75 . . . 15 . . 15 . . . 105 15 150 Influence Decreases 8045 | 10 312 940 181 10 461 34 149 174 747 483 244 193 519 435 183 134 . 60 206 555 727 1288 Entered New Map 1562 | . . . 81 10 . 24 9 42 19 165 144 133 221 335 27 26 . . . 9 251 66 Time Decay 4752 | 10 302 580 80 . 341 10 . 132 589 238 80 60 238 50 156 98 . 60 206 474 476 572 Lost Part 1131 | . 10 60 20 . 100 . 140 . 39 . . . 20 10 . 10 . . . 72 . 650 Lost Ally 300 | . . . . . 20 . . . 100 80 20 . 40 40 . . . . . . . . Purge Threat 300 | . . 300 . . . . . . . . . . . . . . . . . . . . Squads Dispatched 45 | . 1 3 . . 1 . 1 2 . . . 2 1 . 2 . . . 7 10 3 12 Investigation 7 | . . 2 . . . . . . . . . 1 . . . . . . 3 . 1 . Extermination 14 | . . . . . . . . 1 . . . . 1 . 1 . . . . 6 . 5 Reinforcement 17 | . 1 1 . . . . 1 1 . . . 1 . . 1 . . . 4 3 2 2 Assault 3 | . . . . . 1 . . . . . . . . . . . . . . . . 2 Garrison 4 | . . . . . . . . . . . . . . . . . . . . 1 . 3 Intercept . | . . . . . . . . . . . . . . . . . . . . . . . Searches Triggered . | . . . . . . . . . . . . . . . . . . . . . . . Construction Impeded 2 | . . . . . . . . . . . . . . . 1 . . . . . . 1 Haulers Reinforced 4 | . . . . . . . . . . . . 1 . . . . . . 2 . 1 . Active Scanning Responses . | . . . . . . . . . . . . . . . . . . . . . . . Cargo Convoy Interrupts . | . . . . . . . . . . . . . . . . . . . . . . . Stealth | -11 -10 -9 -9 -7 -6 -6 -6 -5 -5 -5 -5 -5 -4 -4 -4 -4 -4 -3 -3 -3 -2 -1 --------- Run | Yrd Mat Mat Min Zio Pro Fac DSF Fac Ext Cet Arc Hub Fac Was Fac Upp War Pro Res Qua Res Acc Distress Signals 25 | . . 2 . . . . . . 3 2 . 1 1 . . . . . 3 1 3 9 Communications Jammed 28 | . . . . . . . . . . . . . 21 . . . 1 . . 6 . . Distress Signals 28 | . . . . . . . . . . . . . 21 . . . 1 . . 6 . . Times Spotted 430 | . 18 58 27 . 27 . 13 4 39 10 5 6 13 3 4 3 1 3 29 49 30 88 Peak Tracking Total 20 | . 4 6 20 . 6 . 5 2 5 5 2 3 7 3 2 2 1 3 6 10 6 13 Tactical Retreats 31 | . . 6 1 . 2 . 1 . 5 . . . 1 . . 1 . . . 7 1 6 Traps | -11 -10 -9 -9 -7 -6 -6 -6 -5 -5 -5 -5 -5 -4 -4 -4 -4 -4 -3 -3 -3 -2 -1 ------- Run | Yrd Mat Mat Min Zio Pro Fac DSF Fac Ext Cet Arc Hub Fac Was Fac Upp War Pro Res Qua Res Acc Traps Triggered 22 | . 2 3 . . . . 2 2 3 . . . 3 . 2 . . . 2 2 . 1 Indirectly . | . . . . . . . . . . . . . . . . . . . . . . . Trap Hack Attempts . | . . . . . . . . . . . . . . . . . . . . . . . Triggered . | . . . . . . . . . . . . . . . . . . . . . . . Disarmed . | . . . . . . . . . . . . . . . . . . . . . . . Reprogrammed . | . . . . . . . . . . . . . . . . . . . . . . . Reused . | . . . . . . . . . . . . . . . . . . . . . . . Traps Extracted . | . . . . . . . . . . . . . . . . . . . . . . . Installed . | . . . . . . . . . . . . . . . . . . . . . . . Triggered . | . . . . . . . . . . . . . . . . . . . . . . . Machines | -11 -10 -9 -9 -7 -6 -6 -6 -5 -5 -5 -5 -5 -4 -4 -4 -4 -4 -3 -3 -3 -2 -1 ---------- Run | Yrd Mat Mat Min Zio Pro Fac DSF Fac Ext Cet Arc Hub Fac Was Fac Upp War Pro Res Qua Res Acc Machines Disabled 29 | . . 1 1 . . . . . 8 . 2 1 4 . 2 . . . 1 4 1 4 Max in Single Turn 1 | . . 1 1 . . . . . 1 . 1 . 1 . 1 . . . 1 1 1 1 Garrison Access 4 | . . . . . . . . . . . . . 1 . . . . . . . 2 1 Machines Repaired . | . . . . . . . . . . . . . . . . . . . . . . . Machines Dismantled 1 | . . . . . . . . . 1 . . . . . . . . . . . . . Machines Sabotaged . | . . . . . . . . . . . . . . . . . . . . . . . Overloaded Fab Kills . | . . . . . . . . . . . . . . . . . . . . . . . Hacking | -11 -10 -9 -9 -7 -6 -6 -6 -5 -5 -5 -5 -5 -4 -4 -4 -4 -4 -3 -3 -3 -2 -1 --------- Run | Yrd Mat Mat Min Zio Pro Fac DSF Fac Ext Cet Arc Hub Fac Was Fac Upp War Pro Res Qua Res Acc Machines Accessed 71 | . 6 15 . . . 1 . 5 7 2 1 3 3 . 2 . 3 . 6 10 3 4 Terminals 38 | . 5 11 . . . 1 . 1 6 2 . 3 1 . 1 . . . 1 5 . 1 Fabricators 3 | . . . . . . . . 1 . . . . . . . . . . 1 . 1 . Repair Stations 11 | . 1 2 . . . . . 2 1 . . . 1 . . . . . 2 2 . . Recycling Units 1 | . . . . . . . . . . . . . . . . . . . . . 1 . Scanalyzers 10 | . . 2 . . . . . 1 . . . . . . 1 . . . 2 3 . 1 Garrison Access 4 | . . . . . . . . . . . . . 1 . . . . . . . 1 2 Total Hacks 213 | . 21 51 . . . 1 . 16 18 7 25 4 7 . 4 . 4 . 11 29 7 8 Successful 120 | . 11 27 . . . 1 . 12 6 3 25 1 3 . 2 . 4 . 3 18 3 1 Failed 91 | . 9 23 . . . . . 4 12 4 . 3 4 . 2 . . . 8 11 4 7 Catastrophic 15 | . . 3 . . . . . . 3 . . . 1 . . . . . 2 2 1 3 Database Lockouts 2 | . 1 1 . . . . . . . . . . . . . . . . . . . . Manual 45 | . 11 23 . . . . . . 2 1 . 4 . . 1 . . . . 3 . . Terminals 95 | . 18 33 . . . 1 . 2 13 7 . 4 1 . 2 . . . 1 10 . 3 Fabricators 8 | . . . . . . . . 2 . . . . . . . . . . 2 . 4 . Repair Stations 33 | . 3 6 . . . . . 5 5 . . . 5 . . . . . 5 4 . . Recycling Units 2 | . . . . . . . . . . . . . . . . . . . . . 2 . Scanalyzers 40 | . . 12 . . . . . 7 . . . . . . 2 . . . 3 15 . 1 Garrison Access 6 | . . . . . . . . . . . . . 1 . . . . . . . 1 4 Terminal Hacks 59 | . 5 8 . . . 1 . . 4 3 25 . . . 2 . 4 . 1 5 . 1 Record 34 | . . . . . . . . . . 3 25 . . . . . 2 . . 4 . . Robot Analysis 4 | . 4 . . . . . . . . . . . . . . . . . . . . . Prototype ID Bank 3 | . 1 2 . . . . . . . . . . . . . . . . . . . . Open Door 5 | . . . . . . . . . 3 . . . . . . . 2 . . . . . Open DSF 2 | . . . . . . 1 . . . . . . . . . . . . 1 . . . Branch Access Points 1 | . . . . . . . . . . . . . . . 1 . . . . . . . Alert Level 1 | . . . . . . . . . . . . . . . . . . . . . . 1 Unreport Threat 2 | . . 2 . . . . . . . . . . . . . . . . . . . . Dispatch Records 1 | . . 1 . . . . . . . . . . . . . . . . . . . . Transport Status 1 | . . 1 . . . . . . . . . . . . . . . . . . . . Hauler Manifests 3 | . . 1 . . . . . . 1 . . . . . 1 . . . . . . . Registered Components 1 | . . . . . . . . . . . . . . . . . . . . 1 . . Zone Layout 1 | . . 1 . . . . . . . . . . . . . . . . . . . . Fabricator Hacks 4 | . . . . . . . . 2 . . . . . . . . . . 1 . 1 . Network Status 1 | . . . . . . . . . . . . . . . . . . . 1 . . . Load Schematic 2 | . . . . . . . . 1 . . . . . . . . . . . . 1 . Build 1 | . . . . . . . . 1 . . . . . . . . . . . . . . Repair Station Hacks 17 | . 2 6 . . . . . 4 1 . . . 2 . . . . . 1 1 . . Scan Component 11 | . 1 3 . . . . . 2 1 . . . 2 . . . . . 1 1 . . Repair 5 | . 1 3 . . . . . 1 . . . . . . . . . . . . . . Refit 1 | . . . . . . . . 1 . . . . . . . . . . . . . . Recycling Unit Hacks 2 | . . . . . . . . . . . . . . . . . . . . . 2 . Process 1 | . . . . . . . . . . . . . . . . . . . . . 1 . Retrieve Matter 1 | . . . . . . . . . . . . . . . . . . . . . 1 . Scanalyzer 23 | . . 6 . . . . . 6 . . . . . . . . . . . 11 . . Insert Component 4 | . . 1 . . . . . 1 . . . . . . . . . . . 2 . . Analyze 5 | . . 1 . . . . . 1 . . . . . . . . . . . 3 . . Retrieve Study 14 | . . 4 . . . . . 4 . . . . . . . . . . . 6 . . Garrison Access Hacks 1 | . . . . . . . . . . . . . 1 . . . . . . . . . Seal Access 1 | . . . . . . . . . . . . . 1 . . . . . . . . . Unauthorized Hacks 14 | . 4 7 . . . . . . 1 . . 1 . . . . . . . 1 . . Terminals 13 | . 4 7 . . . . . . 1 . . 1 . . . . . . . . . . Botnet 11 | . 4 6 . . . . . . 1 . . . . . . . . . . . . . Disrupt 1 | . . 1 . . . . . . . . . . . . . . . . . . . . Sabotage 1 | . . . . . . . . . . . . 1 . . . . . . . . . . Fabricators . | . . . . . . . . . . . . . . . . . . . . . . . Repair Stations . | . . . . . . . . . . . . . . . . . . . . . . . Recycling Units . | . . . . . . . . . . . . . . . . . . . . . . . Scanalyzers 1 | . . . . . . . . . . . . . . . . . . . . 1 . . Researchers 1 | . . . . . . . . . . . . . . . . . . . . 1 . . Garrison Access . | . . . . . . . . . . . . . . . . . . . . . . . Data Cores Recovered 4 | . . 1 . . . . . 1 1 . . 1 . . . . . . . . . . Used 1 | . . . . . . . . . . . . 1 . . . . . . . . . . Hacking Detections 57 | . 6 14 . . . . . 4 5 2 . 3 2 . 2 . . . 5 7 3 4 Full Trace Events 2 | . . 1 . . . . . . . . . . . . . . . . . . 1 . Feedback Events . | . . . . . . . . . . . . . . . . . . . . . . . Feedback Blocked . | . . . . . . . . . . . . . . . . . . . . . . . Robot Schematics Acquired 2 | . . . . . . . . . . . . . . . . . . . . 2 . . Robots Built . | . . . . . . . . . . . . . . . . . . . . . . . Authchips . | . . . . . . . . . . . . . . . . . . . . . . . Time . | . . . . . . . . . . . . . . . . . . . . . . . Total Robot Build Rating . | . . . . . . . . . . . . . . . . . . . . . . . Part Schematics Acquired 9 | . . 1 . . . . . 1 . . . . . . . . . . . 7 . . Parts Built 2 | . . . . . . . . 2 . . . . . . . . . . . . . . Authchips 1 | . . . . . . . . 1 . . . . . . . . . . . . . . Time 62 | . . . . . . . . 62 . . . . . . . . . . . . . . Total Part Build Rating 4 | . . . . . . . . 4 . . . . . . . . . . . . . . Part Studies Acquired 14 | . . 4 . . . . . 4 . . . . . . . . . . . 6 . . Parts Repaired 5 | . 1 3 . . . . . 1 . . . . . . . . . . . . . . Time 148 | . 26 84 . . . . . 38 . . . . . . . . . . . . . . Parts Recycled . | . . . . . . . . . . . . . . . . . . . . . . . Recycled Matter 23 | . . . . . . . . . . . . . . . . . . . . . 23 . Retrieved Matter 23 | . . . . . . . . . . . . . . . . . . . . . 23 . Retrieved Components . | . . . . . . . . . . . . . . . . . . . . . . . Parts Scanalyzed 4 | . . 1 . . . . . 1 . . . . . . . . . . . 2 . . Part Schematics Acquired 4 | . . 1 . . . . . 1 . . . . . . . . . . . 2 . . Parts Damaged . | . . . . . . . . . . . . . . . . . . . . . . . Bothacking | -11 -10 -9 -9 -7 -6 -6 -6 -5 -5 -5 -5 -5 -4 -4 -4 -4 -4 -3 -3 -3 -2 -1 ------------ Run | Yrd Mat Mat Min Zio Pro Fac DSF Fac Ext Cet Arc Hub Fac Was Fac Upp War Pro Res Qua Res Acc Used RIF Installer . | . . . . . . . . . . . . . . . . . . . . . . . Robots Hacked . | . . . . . . . . . . . . . . . . . . . . . . . Non-combat . | . . . . . . . . . . . . . . . . . . . . . . . Combat . | . . . . . . . . . . . . . . . . . . . . . . . Robot Hacks Applied . | . . . . . . . . . . . . . . . . . . . . . . . Relay Couplers Released 6 | . . . . . . . . . . . . . . . . . . . . . . 6 Machine Destruction 2 | . . . . . . . . . . . . . . . . . . . . . . 2 Programmers 4 | . . . . . . . . . . . . . . . . . . . . . . 4 Fabnet Peak Effective % . | . . . . . . . . . . . . . . . . . . . . . . . Robots Rewired 11 | . . . . . . . . . 6 . . . . . . . 5 . . . . . Allies Hacked 2 | . . . . . . . . . 2 . . . . . . . . . . . . . Hacks Repelled . | . . . . . . . . . . . . . . . . . . . . . . . Allies | -11 -10 -9 -9 -7 -6 -6 -6 -5 -5 -5 -5 -5 -4 -4 -4 -4 -4 -3 -3 -3 -2 -1 -------- Run | Yrd Mat Mat Min Zio Pro Fac DSF Fac Ext Cet Arc Hub Fac Was Fac Upp War Pro Res Qua Res Acc Total Allies 34 | . . . . 4 . . . . 19 5 . . . 1 . . 5 . . . . . Largest Group 9 | . . . . 4 4 . . . 8 9 7 5 5 3 . . 5 1 1 . . . Highest-Rated Group 690 | . . . . 116 111 . . . 363 690 637 473 473 281 . . 284 64 64 . . . Highest-Rated Ally 159 | . . . . 51 51 . . . 159 159 130 96 96 96 . . 68 64 64 . . . Initial Warlord ECA Mod 9 | . . . . . . . . 9 9 9 9 9 8 8 8 8 8 7 7 7 6 5 Total Orders 31 | . . . . . . . . . 16 3 . . . 1 . . . 2 3 5 . 1 STAY 3 | . . . . . . . . . 1 . . . . 1 . . . 1 . . . . FOLLOW 1 | . . . . . . . . . . . . . . . . . . 1 . . . . GUARD 2 | . . . . . . . . . 1 1 . . . . . . . . . . . . RETURN 25 | . . . . . . . . . 14 2 . . . . . . . . 3 5 . 1 Ally Attacks 255 | . . . . . 41 . . . 46 34 26 26 40 30 . . 12 . . . . . Total Damage 7768 | . . . . . 787 . . . 1305 1018 1025 1066 1124 1120 . . 323 . . . . . Kills 46 | . . . . . 7 . . . 13 6 3 8 8 1 . . . . . . . . Allies Corrupted 1 | . . . . . . . . . . . . . 1 . . . . . . . . . Allies Melted . | . . . . . . . . . . . . . . . . . . . . . . . Intel | -11 -10 -9 -9 -7 -6 -6 -6 -5 -5 -5 -5 -5 -4 -4 -4 -4 -4 -3 -3 -3 -2 -1 ------- Run | Yrd Mat Mat Min Zio Pro Fac DSF Fac Ext Cet Arc Hub Fac Was Fac Upp War Pro Res Qua Res Acc Active Infowar (turns) 12185 | 33 812 138 . . . 21 377 690 737 . . . 482 79 338 1235 666 755 1311 2062 597 1852 Optics 752 | . . . . . . . . . . . . . . . . . . . . . 1 751 Sensors 7258 | . . . . . . . . . . . . . 88 79 336 1209 641 750 1103 2062 . 990 IFF 324 | . . . . . . . . . . . . . . . . . . . . . . 324 Terrain 586 | . . . . . . . . . . . . . . . . . . . . . . 586 Structural 2368 | . . . . . . 21 377 690 737 . . . . . 192 203 . . 148 . . . Seismic 983 | 33 812 138 . . . . . . . . . . . . . . . . . . . . Jamming 3489 | . . . . . . . . . . . . . 482 8 . 596 25 5 471 620 594 688 ECM 2 | . . . . . . . . . . . . . . . . . . . . . 2 . Robot Analysis Total 4 | . 4 . . . . . . . . . . . . . . . . . . . . . Derelict Logs Recovered 2 | . . . . 1 1 . . . . . . . . . . . . . . . . . Drone Launches 26 | . . . . . . . . . 15 2 . . . . . . . . 3 5 . 1 Drone Recoveries 26 | . . . . . . . . . 15 2 . . . . . . . . 3 5 . 1 Exploration | -11 -10 -9 -9 -7 -6 -6 -6 -5 -5 -5 -5 -5 -4 -4 -4 -4 -4 -3 -3 -3 -2 -1 ------------- Run | Yrd Mat Mat Min Zio Pro Fac DSF Fac Ext Cet Arc Hub Fac Was Fac Upp War Pro Res Qua Res Acc Turns Passed 22317 | 64 812 2195 160 1090 1198 22 377 690 2382 506 166 130 501 110 434 1266 666 805 1564 2108 2943 2128 Spaces Moved 12254 | 45 487 1119 67 783 501 13 179 394 1284 336 85 69 307 62 258 709 433 305 958 1087 1778 995 Core 5 | . . . . . . . . . . . . . . . . . . . . . . 5 Treads 3871 | . 43 190 . . 373 13 5 . 1 . . . 1 . 8 157 . 300 . 393 1778 609 Legs 344 | . . . . . . . . 13 . . . . . . . . . . . . . 331 Wheels 8034 | 45 444 929 67 783 128 . 174 381 1283 336 85 69 306 62 250 552 433 5 958 694 . 50 Hover . | . . . . . . . . . . . . . . . . . . . . . . . Flight . | . . . . . . . . . . . . . . . . . . . . . . . Fastest Speed 50 | 95 100 115 120 135 120 160 90 110 100 105 150 165 122 122 122 141 141 141 122 118 152 50 Average Speed 142 | 96 112 147 134 135 198 160 112 122 117 122 164 165 134 122 125 162 141 238 123 146 152 143 Slowest Speed 570 | 100 240 240 135 135 240 160 160 183 240 165 165 165 240 122 240 240 141 240 141 240 152 570 Overloaded Moves . | . . . . . . . . . . . . . . . . . . . . . . . Propulsion Burnouts . | . . . . . . . . . . . . . . . . . . . . . . . Robots Hopped . | . . . . . . . . . . . . . . . . . . . . . . . Potential Cave-ins . | . . . . . . . . . . . . . . . . . . . . . . . Cave-ins Triggered 1 | . . . . . . . . . . . . . . . . 1 . . . . . . Teleports 1 | . . . . . . . . . . . . . . . . . . . . 1 . . Exploration Rate (%) 49 | 4 76 97 17 82 69 1 94 10 77 86 75 10 9 55 6 57 59 56 32 79 68 23 Regions Visited 22 Branch Regions 11 Pre-discovered Areas 2 | . . . . 1 . . . . . . . . . . . 1 . . . . . . Known Exits Taken 11 | . . . . . . 1 . 1 1 . . 1 . . 1 1 1 1 1 1 1 . Unknown Exits Taken 8 | 1 1 1 1 1 1 . . . . 1 1 . . . . . . . . . . . Scrap Searched 6 | . . . 1 2 2 . . . . . . . . . . . . 1 . . . . Spaces Dug 50 | . . . . . . . . . . . . . . . 1 43 . . . 1 4 1 Terrain Destroyed 456 | . . 1 32 . . . 1 1 14 2 4 1 1 1 5 105 . 3 18 101 15 151 Melee . | . . . . . . . . . . . . . . . . . . . . . . . Projectile 139 | . . 1 . . . . 1 1 14 2 4 1 1 1 5 12 . 3 5 28 15 45 AOE 317 | . . . 32 . . . . . . . . . . . . 93 . . 13 73 . 106 Terrain Rammed . | . . . . . . . . . . . . . . . . . . . . . . . Walls Destroyed . | . . . . . . . . . . . . . . . . . . . . . . . Machines Disabled . | . . . . . . . . . . . . . . . . . . . . . . . Actions | -11 -10 -9 -9 -7 -6 -6 -6 -5 -5 -5 -5 -5 -4 -4 -4 -4 -4 -3 -3 -3 -2 -1 --------- Run | Yrd Mat Mat Min Zio Pro Fac DSF Fac Ext Cet Arc Hub Fac Was Fac Upp War Pro Res Qua Res Acc Total 15397 | 57 631 1450 95 815 590 14 272 569 1885 407 95 79 360 77 336 787 489 365 1256 1412 1955 1401 Wait 1214 | . 58 131 . 22 9 . 6 114 237 19 . 7 12 4 30 42 2 48 185 158 55 75 Move 12233 | 44 486 1118 66 782 500 12 178 393 1283 335 84 68 307 61 257 708 432 304 957 1086 1777 995 Hop . | . . . . . . . . . . . . . . . . . . . . . . . Pick Up 177 | . 5 31 2 2 7 . 12 6 15 9 1 1 9 1 4 1 3 . 12 16 19 21 Fast Attach 150 | 1 1 10 . 1 1 . 10 8 17 7 . . 3 . 2 . . . 7 8 19 55 Attach 116 | 2 1 5 3 1 8 2 7 10 7 . 3 . 3 1 3 2 . . 6 9 6 37 Detach 71 | 2 . 2 1 . . . 2 10 6 3 . . . . 2 1 . . 7 4 6 25 Swap 255 | 1 8 17 3 4 4 . 6 6 49 8 . . 4 2 16 14 1 6 29 30 12 35 Drop 210 | 2 8 34 . 3 8 . 6 6 28 15 . . 6 . 6 1 2 . 17 18 30 20 Fire 763 | 5 64 102 20 . 51 . 36 15 101 11 7 3 16 8 16 18 . 7 36 83 31 133 Melee 20 | . . . . . . . . . 20 . . . . . . . . . . . . . Ram . | . . . . . . . . . . . . . . . . . . . . . . . Kick 2 | . . . . . . . . . . . . . . . . . . . . . . 2 Crush 8 | . . . . . 2 . . 1 2 . . . . . . . . . . . . 3 Escape Stasis 24 | . . . . . . . 8 . 16 . . . . . . . . . . . . . Rewire 146 | . . . . . . . 1 . 96 . . . . . . . 49 . . . . . Trap . | . . . . . . . . . . . . . . . . . . . . . . . Miscellaneous 8 | . . . . . . . . . 8 . . . . . . . . . . . . . Route ------- -11/Scrapyard -10/Materials (discovered 4 exits: *Mat x2 / [*Min x2]) -9/Materials (discovered 7 exits: [*Mat x3] / [*Min x2] / [*Sto x2]) -9/Mines -7/Zion -6/Proximity Caves -6/Factory (discovered 5 exits: Fac x2 / Low x2 / DSF) -6/DSF -5/Factory -5/Extension (discovered 3 exits: *Fac x2 / *Cet) -5/Cetus (discovered 2 exits: *Fac / *Arc) -5/Archives -5/Hub_04(d) (discovered 2 exits: *Fac x2) -4/Factory -4/Waste -4/Factory (discovered 3 exits: *Upp x2 / Arm) -4/Upper Caves (discovered 2 exits: *Upp / *War) -4/Warlord -3/Proximity Caves -3/Research (discovered 2 exits: *Qua x2) -3/Quarantine -2/Research (discovered 2 exits: *Acc / *Tes) -1/Access History --------- Turn | Location | Event 6 | -11/Scrapyard | Discovered new exit (range 3) 65 | -11/Scrapyard | Entered Materials 93 | -10/Materials | Discovered new exit (range 7) 301 | -10/Materials | Build established: Mutant 519 | -10/Materials | Discovered new exit (range 14) 699 | -10/Materials | Central database locked down 721 | -10/Materials | Discovered new exit (range 7) 831 | -10/Materials | Repaired Lgt. Treads 849 | -10/Materials | Discovered new exit (range 3) 865 | -10/Materials | Derelicts attacked the area 877 | -10/Materials | Entered another Materials area 877 | -9/Materials | Evolved 2 slots: Utility x1, Weapon x1 1073 | -9/Materials | Central database locked down 1130 | -9/Materials | Repaired Lgt. Armor Plating 1158 | -9/Materials | Repaired Assault Rifle+ 1279 | -9/Materials | Discovered new exit (range 14) 1311 | -9/Materials | Discovered new exit (range 16) 1463 | -9/Materials | Build established: Scavenger-Tank 1575 | -9/Materials | Discovered new exit (range 11) 1724 | -9/Materials | Discovered new exit (range 16) 2212 | -9/Materials | Discovered new exit (range 9) 2391 | -9/Materials | Repaired Imp. Light Cannon 2713 | -9/Materials | Build established: Tank 2727 | -9/Materials | Discovered new exit (range 16) 2882 | -9/Materials | Discovered new exit (range 5) 3072 | -9/Materials | Entered Mines 3073 | -9/Mines | Assembled infested the area 3137 | -9/Mines | A weapon hastily lodged in a ceiling crevice suddenly fell to the ground 3162 | -9/Mines | Found DCF Scrap (10 items) 3163 | -9/Mines | A Derelict revealed a hidden shortcut to a safe place 3174 | -9/Mines | Destroyed 14 combat bots 3232 | -9/Mines | Entered Zion 3309 | -7/Zion | Discovered new exit (range 12) 3316 | -7/Zion | Given the Hacking Drone Bay 3321 | -7/Zion | Found Prototype Device 3509 | -7/Zion | Given A8's code to call for help 3755 | -7/Zion | Identified Hacking Drone Bay 3808 | -7/Zion | Learned location of Quarantine (-3) 3810 | -7/Zion | Received a hallucinogenic algorithm 3841 | -7/Zion | Gained Derelict followers 4044 | -7/Zion | Build established: Gunner 4322 | -7/Zion | Entered Proximity Caves 4322 | -6/Proximity Caves | Accompanied by 4 allies 4463 | -6/Proximity Caves | Spotted B-75 Beast 4484 | -6/Proximity Caves | Allies destroyed B-75 Beast 4831 | -6/Proximity Caves | Learned 8 Factory zone layouts 5224 | -6/Proximity Caves | Attracted the attention of an 0b10 outpost 5229 | -6/Proximity Caves | Core integrity fell below 50% 5431 | -6/Proximity Caves | Lost 8 parts (1p2n1u4w) 5512 | -6/Proximity Caves | Discovered new exit (range 5) 5519 | -6/Proximity Caves | Core integrity fell below 20% 5520 | -6/Proximity Caves | Entered Factory 5520 | -6/Factory | Evolved 6 slots: Propulsion x2, Utility x4 5521 | -6/Factory | Identified exit to Lower Caves 5521 | -6/Factory | Identified exit to Factory 5542 | -6/Factory | Identified exit to DSF 5542 | -6/Factory | Entered DSF 5579 | -6/DSF | Additional patrols routed to DSF 5677 | -6/DSF | Lost 3 parts (1n2w) 5740 | -6/DSF | Discovered exit to Factory (range 14) 5839 | -6/DSF | Sterilization system engaged 5859 | -6/DSF | Ambient heat levels rising (+10) 5874 | -6/DSF | Ambient heat levels rising (+10) 5889 | -6/DSF | Ambient heat levels rising (+10) 5895 | -6/DSF | Lost 10 parts (1p5n2u2w) 5904 | -6/DSF | Ambient heat levels rising (+10) 5919 | -6/DSF | Ambient heat levels rising (+10) 5919 | -6/DSF | Entered Factory 5919 | -5/Factory | Evolved 2 slots: Power x1, Utility x1 5920 | -5/Factory | Identified exit to Extension 6019 | -5/Factory | Repaired Pulse Rifle 6059 | -5/Factory | Build established: Mutant 6148 | -5/Factory | Fabricated Arm. Wheel (x2) 6609 | -5/Factory | Build established: Tank 6609 | -5/Factory | Entered Extension 6876 | -5/Extension | Rescued a captive Derelict 6877 | -5/Extension | Rescued a captive Derelict 6897 | -5/Extension | Rescued a captive Derelict 6980 | -5/Extension | Identified exit to Cetus 7003 | -5/Extension | Build established: Scavenger-Tank 7056 | -5/Extension | Rescued a captive Derelict 7264 | -5/Extension | Spotted B-75 Beast 7268 | -5/Extension | Lost 3 allies 7318 | -5/Extension | Lost 4 allies 7341 | -5/Extension | Rescued a captive Derelict 7346 | -5/Extension | Spotted B-75 Beast 7507 | -5/Extension | Destroyed B-75 Beast 7585 | -5/Extension | Destroyed B-75 Beast 7601 | -5/Extension | Lost 5 parts (2n3u) 7846 | -5/Extension | Discovered new exit (range 3) 7984 | -5/Extension | Disrupted transfer network 8031 | -5/Extension | Rescued a captive Derelict 8033 | -5/Extension | Rescued a captive Derelict 8165 | -5/Extension | Rescued a captive Derelict 8166 | -5/Extension | Rescued a captive Derelict 8182 | -5/Extension | Rescued a captive Derelict 8471 | -5/Extension | Identified exit to Factory 8516 | -5/Extension | Rescued a captive Derelict 8608 | -5/Extension | Build established: Scavenger-Mutant 8675 | -5/Extension | Rescued A7 8962 | -5/Extension | Build established: Scavenger-Tank 8975 | -5/Extension | Disrupted transfer network 8991 | -5/Extension | Entered Cetus 8991 | -5/Cetus | Accompanied by 7 allies (A7) 8996 | -5/Cetus | Acquired a Cetus Manufacturing Module code from A7 9008 | -5/Cetus | Spotted Cetus Guard 9008 | -5/Cetus | Spotted Cetus Guard 9012 | -5/Cetus | Spotted Cetus Guard 9015 | -5/Cetus | Spotted Cetus Guard 9019 | -5/Cetus | Destroyed Cetus Guard 9021 | -5/Cetus | Allies destroyed Cetus Guard 9027 | -5/Cetus | Allies destroyed Cetus Guard 9029 | -5/Cetus | Destroyed Cetus Guard 9065 | -5/Cetus | Lost 3 allies 9066 | -5/Cetus | System corruption reached 10% 9248 | -5/Cetus | Started Cetus Manufacturing Module 9257 | -5/Cetus | Escorted A7 to Cetus Mainframe 9273 | -5/Cetus | Manufactured an Enhanced Grunt 9298 | -5/Cetus | Manufactured an Enhanced Grunt 9323 | -5/Cetus | Manufactured an Enhanced Grunt 9337 | -5/Cetus | Discovered new exit (range 15) 9348 | -5/Cetus | Manufactured an Enhanced Grunt 9361 | -5/Cetus | Spotted Cetus Guard 9362 | -5/Cetus | Spotted Cetus Guard 9365 | -5/Cetus | Destroyed Cetus Guard 9365 | -5/Cetus | Spotted Cetus Guard 9367 | -5/Cetus | Spotted Cetus Guard 9373 | -5/Cetus | Manufactured an Enhanced Grunt 9382 | -5/Cetus | Allies destroyed Cetus Guard 9383 | -5/Cetus | Destroyed Cetus Guard 9383 | -5/Cetus | Allies destroyed Cetus Guard 9393 | -5/Cetus | Discovered exit to Factory (range 16) 9408 | -5/Cetus | Met Revision 17 9497 | -5/Cetus | Entered Archives 9497 | -5/Archives | Accompanied by 7 allies (A7) 9502 | -5/Archives | Received a hacking code to weaken MAIN.C 9560 | -5/Archives | Unable to access archive contents 9636 | -5/Archives | Unable to access archive contents 9636 | -5/Archives | Unable to access archive contents 9643 | -5/Archives | Discovered new exit (range 13) 9663 | -5/Archives | Entered Hub_04(d) 9663 | -5/Hub_04(d) | Accompanied by 5 allies 9663 | -5/Hub_04(d) | Discovered exit to Factory (range 12) 9697 | -5/Hub_04(d) | Discovered exit to Factory (range 11) 9793 | -5/Hub_04(d) | Entered Factory 9793 | -4/Factory | Accompanied by 5 allies 9793 | -4/Factory | Evolved 2 slots: Propulsion x2 10294 | -4/Factory | Sucked down chute 10294 | -4/Factory | Entered Waste 10295 | -4/Waste | Met a frightened Derelict 10308 | -4/Waste | Spotted C-40 Crusher 10309 | -4/Waste | EMP discharged 10309 | -4/Waste | System corruption reached 10% 10330 | -4/Waste | Allies destroyed C-40 Crusher 10348 | -4/Waste | Spotted C-40 Crusher 10350 | -4/Waste | Destroyed C-40 Crusher 10354 | -4/Waste | 3 allies followed down the chute 10370 | -4/Waste | Spotted C-40 Crusher 10372 | -4/Waste | Spotted C-40 Crusher 10376 | -4/Waste | Spotted C-40 Crusher 10384 | -4/Waste | Crushed by Compactor (1 part destroyed, 1 dropped) 10386 | -4/Waste | Discovered new exit (range 16) 10403 | -4/Waste | Identified exit to Factory 10404 | -4/Waste | Entered Factory 10650 | -4/Factory | Identified exit to Upper Caves 10650 | -4/Factory | Identified exit to Armory 10834 | -4/Factory | Found Prototype Launcher 10834 | -4/Factory | Identified Com. Tesla Bomb Launcher 10838 | -4/Factory | Entered Upper Caves 10877 | -4/Upper Caves | Met a Warlord Commander 10878 | -4/Upper Caves | Learned location of Warlord (-4) 10879 | -4/Upper Caves | Warlord Commander delivered Encrypted Comm Array 10883 | -4/Upper Caves | Found Encrypted Comm Array 10968 | -4/Upper Caves | Spotted B-86 Titan 11166 | -4/Upper Caves | Build established: Scavenger-Skirmisher 11449 | -4/Upper Caves | Crushed by falling debris 11797 | -4/Upper Caves | Encountered a Warlord checkpoint 11968 | -4/Upper Caves | Build established: Scavenger-Tank 12033 | -4/Upper Caves | Discovered new exit (range 13) 12053 | -4/Upper Caves | Identified exit to Upper Caves 12089 | -4/Upper Caves | A Derelict revealed a hidden shortcut to "reach the base" 12103 | -4/Upper Caves | Identified exit to Warlord 12104 | -4/Upper Caves | Entered Warlord 12155 | -4/Warlord | System corruption cleaned by Quarantine Array 12446 | -4/Warlord | Visited the Vortex Lab 12451 | -4/Warlord | Warlord's base attacked by MAIN.C 12461 | -4/Warlord | Met EX-DEC 12469 | -4/Warlord | Found Prototype Energy Gun 12472 | -4/Warlord | Found Prototype Energy Gun 12478 | -4/Warlord | Found Prototype Energy Gun 12538 | -4/Warlord | Met Warlord 12729 | -4/Warlord | Opened side exit 12758 | -4/Warlord | Discovered new exit (range 9) 12767 | -4/Warlord | Identified exit to Proximity Caves 12770 | -4/Warlord | Entered Proximity Caves 12770 | -3/Proximity Caves | Accompanied by 1 ally 13390 | -3/Proximity Caves | Attracted the attention of an 0b10 checkpoint 13540 | -3/Proximity Caves | Discovered new exit (range 11) 13564 | -3/Proximity Caves | Identified exit to Research 13575 | -3/Proximity Caves | Entered Research 13575 | -3/Research | Accompanied by 1 ally 13575 | -3/Research | Evolved 2 slots: Utility x2 13644 | -3/Research | Identified Vortex Rail 13681 | -3/Research | P-80 Master assimilated allied Archangel 7a 13780 | -3/Research | Revision forces began assault on 0b10 13787 | -3/Research | Met up with Revision 17++ 14047 | -3/Research | Found Fusion Bomb Launcher 14079 | -3/Research | Identified exit to Quarantine 14280 | -3/Research | Research terminal network offline 14426 | -3/Research | Spotted B-86 Titan 14652 | -3/Research | Spotted Executioner 14654 | -3/Research | Spotted Striker 14702 | -3/Research | Found Prototype Processor 14702 | -3/Research | Identified Exp. Core Analyzer 14836 | -3/Research | Identified Vortex Rifle (x2) 14949 | -3/Research | Spotted Striker 14983 | -3/Research | Lost 4 allies 15139 | -3/Research | Entered Quarantine 15265 | -3/Quarantine | Found Alien Artifact 15337 | -3/Quarantine | Discovered new exit (range 13) 15521 | -3/Quarantine | Watched by a mysterious "MATRIX" hacker. 15710 | -3/Quarantine | System corruption reached 10% 15754 | -3/Quarantine | Lost 6 parts (3n3u) 15762 | -3/Quarantine | Destroyed 9 combat bots 16146 | -3/Quarantine | Found Fusion Bomb Launcher+ 16229 | -3/Quarantine | Scanned by Researcher 16840 | -3/Quarantine | Found Alien Artifact 17012 | -3/Quarantine | System corruption reached 30% 17109 | -3/Quarantine | Identified Hpw. Transdimensional Reconstructor 17109 | -3/Quarantine | Warped through subspace 17226 | -3/Quarantine | Garrison activated, responded to threat 17246 | -3/Quarantine | Identified exit to Research 17247 | -3/Quarantine | Entered Research 17247 | -2/Research | Warlord forces began assault on 0b10 17247 | -2/Research | Evolved 2 slots: Power x1, Utility x1 17272 | -2/Research | Distinguished unit "Department No. 42" dispatched to help 17357 | -2/Research | Research machine network offline 17757 | -2/Research | Met DD-05H 17844 | -2/Research | Found Prototype Processor 17844 | -2/Research | Identified Exp. Terrain Scan Processor 17870 | -2/Research | Borebot progress halted 17933 | -2/Research | Found Prototype Processor 17933 | -2/Research | Identified Exp. Targeting Computer 18123 | -2/Research | Borebot progress halted 18210 | -2/Research | Spotted B-90 Cyclops 18298 | -2/Research | Found Prototype Processor 18298 | -2/Research | Identified Exp. Signal Interpreter 18490 | -2/Research | Spotted Striker 18529 | -2/Research | Found Exp. Core Analyzer 18594 | -2/Research | Lost 4 allies 18715 | -2/Research | Discovered new exit (range 15) 18736 | -2/Research | Identified exit to Testing 18766 | -2/Research | Given Cave Seal Controls access code 18905 | -2/Research | Spotted Striker 18907 | -2/Research | Spotted Executioner 18946 | -2/Research | Lost 3 allies 18991 | -2/Research | Lost 3 allies 19062 | -2/Research | Lost 8 allies 19141 | -2/Research | Discovered new exit (range 11) 19757 | -2/Research | Spotted Striker 19766 | -2/Research | Spotted Striker 19795 | -2/Research | Destroyed Striker 19826 | -2/Research | Lost 6 allies 19897 | -2/Research | Spotted Striker 19913 | -2/Research | Destroyed Striker 20171 | -2/Research | Found Prototype Processor 20171 | -2/Research | Identified Exp. Melee Analysis Suite 20182 | -2/Research | Identified exit to Access 20190 | -2/Research | Entered Access 20190 | -1/Access | Evolved 2 slots: Utility x2 20525 | -1/Access | Build established: Scavenger-Skirmisher 20586 | -1/Access | Spotted B-99 Colossus 20708 | -1/Access | Destroyed 9 combat bots 20872 | -1/Access | Destroyed 9 combat bots 20975 | -1/Access | Lost 24 parts (5p7n7u5w) 21055 | -1/Access | System corruption reached 10% 21090 | -1/Access | Lost 9 parts (3p2n2u2w) 21128 | -1/Access | Core integrity fell below 50% 21183 | -1/Access | Found Prototype Energy Gun 21183 | -1/Access | Identified Enh. Gamma Rifle 21187 | -1/Access | Found Enh. Gamma Rifle 21198 | -1/Access | Lost 16 parts (4p2n4u6w) 21226 | -1/Access | Found Prototype Device 21226 | -1/Access | Identified Exp. Focal Shield 21399 | -1/Access | Build established: Scavenger-Gunner 21567 | -1/Access | Found Prototype Processor 21567 | -1/Access | Identified Spectral Analyzer 21922 | -1/Access | Garrison activated, responded to threat 21997 | -1/Access | Build established: Scavenger-Tank 22005 | -1/Access | System corruption reached 30% 22130 | -1/Access | Lost 11 parts (4p3u4w) 22285 | -1/Access | Core integrity fell below 20% 22318 | -1/Access | Self-destructed Last Messages --------------- 22305_ Slug penetrates Wall. 22307_ U-05 Engineer builds a Wall. 22308_ System corrupted: FCS attempts to trigger Enh. Nova Cannon. 22308_ System corrupted: Enh. Nova Cannon misfires. 22308_ Destroyed Wheel. 22308_ ALERT: Construction progress impeded, dispatching reinforcements to local area. 22309_ Penetrated by Slug. 22309_ U-05 Engineer suffers critical hit (Destroy). 22309_ Slug penetrates Wall. 22311_ K-01 Serf collects debris. 22312_ Penetrated by Slug. 22312_ Critical hit (Destroy). 22312_ Lgt. Antimatter Reactor destroyed. 22312_ U-05 Engineer builds a Wall. 22314_ Slug penetrates Wall. 22315_ Penetrated by Slug. 22317_ U-05 Engineer builds a Wall. 22318_ Slug penetrates Wall. [Achievement: Tester] Map ----- +----------------------------------------------------+ | ###### # ??#####+"##??????????????#[ | | ?????######### ## #??????????????## | | ###??????????# ## ] #??? !!! + | | #??????????# ## #???] !! # # | | #??????????# ## ! #???????????????# # | | #??????????# ## #???????????????# # | | #??????????# ## #???????????????# # | | #??????????# #########???????????????# # | | #??????????# #???????##############??# # | | #??????????# #???????# #??# # | | #??????????# #???????# #??#% # | | #??????????# #???????# #??# # | | #???????????######???????#! [##?# # | | #????????????????????????# """""==#### # | | #????????????????????????# """""%=/%% " | | ###????????????????????????# """"" ######+### | | ???????????????????????????# """"" ## ?? ??? | | ???????????????????????????# """"" #? ? ??? | | ???????????????????????????# !%=""""" #?? ??? | | ???????????????????????????# [ #??? ?? | | ???????????????????????????# R % #???? ? | | ???????????????????????????######=k############### | | ??????????????????????????????# =%[ #???? | | ?????????????????????????????## #???? | | ???# ###########;;## #???? | | ???# ; @ = hu s #???? | | ???# ############### h #???? | | ?????????????????????????????## #???? | | ??????????????????????????????# #???? | | ?????????????????????????????######## #???? | | ????????????????????????????????????? #???? | | ????????????????????????????????????? #???? | | ?????????????????????????????????????? #???? | | ??????????????????????????????????????? ^ #???? | | ??????????????????????????????????????? #???? | | ???????????????????????????????????????? #???? | | ???????????????????????????????????????? #???? | | ????????????????????????????????????????? #???? | | ????????????????????????????????????????? #???? | | ????????????????????????????????????????? ???? | | ??????????????????????????????????????????= ??? | | ??????????????????????????????????????????? ?????? | | ?????????????????????????????????????????????????? | | ?????????????????????????????????????????????????? | | ?????????????????????????????????????????????????? | | ?????????????????????????????????????????????????? | | ?????????????????????????????????????????????????? | | ?????????????????????????????????????????????????? | | ?????????????????????????????????????????????????? | | ?????????????????????????????????????????????????? | +----------------------------------------------------+ Best States ------------- Heat Dissipation 114 Coolant Potential 80 Energy Generation 69 Energy Capacity 910 Matter Stores 300 Matter Capacity 300 Sight Range 24 Robot Scan Range 16 Terrain Scan Range 20 Terrain Scan Density 1010 Jamming Range 14 Base Temperature (-) 200 EM Shielding 4 Armor Coverage 1200 Resistance: KI 30 Resistance: EX 50 Core Shielding 20 Point Defense Rating 240 Phase Shifting 15 Evasion (%) 70 Targeting Accuracy 20 Target Analysis 8 Core Analysis 12 Recoil Reduction 6 Salvage Targeting 3 Offensive Hacking 14 Defensive Hacking 14 Authchip Count 1 Item Schematics ----------------- Arm. Wheel | -9/Materials | Scanalyzed Graphene Brace | -5/Factory | Scanalyzed Centrium Heavy Treads | -3/Quarantine | Scanalyzed Centrium Medium Armor Plating | -3/Quarantine | Scanalyzed Exp. Cooling System | -3/Quarantine | Archive Adv. EM Disruption Field | -3/Quarantine | Archive Cld. Phase Gun | -3/Quarantine | Archive Hvy. Wave Gun | -3/Quarantine | Archive Adv. Matter Compressor | -3/Quarantine | Archive Robot Schematics ------------------ B-60 Warrior | -3/Quarantine | Archive S-43 Plague | -3/Quarantine | Archive Fabricated ------------ Arm. Wheel | x2 | -5/Factory | Authchip Repaired ---------- Lgt. Treads | 39% | -10/Materials Lgt. Armor Plating | 65% | -9/Materials Assault Rifle | 35% | -9/Materials Imp. Light Cannon | 58% | -9/Materials Pulse Rifle | 3% | -5/Factory Studied --------- Com. Wheel | -9/Materials | Hacked Assault Rifle | -9/Materials | Hacked Lgt. Assault Rifle | -9/Materials | Hacked Beam Rifle | -9/Materials | Hacked Arm. Huge Wheel | -5/Factory | Hacked Rocket Launcher | -5/Factory | Hacked KE Penetrator | -5/Factory | Hacked Arm. Wheel | -5/Factory | Hacked Fusion Bomb Launcher | -3/Quarantine | Hacked Centrium Wheel | -3/Quarantine | Hacked Hyp. Railgun | -3/Quarantine | Hacked Imp. Remote Datajack | -3/Quarantine | Hacked Dispersion Rifle | -3/Quarantine | Hacked Hvy. Linear Accelerator | -3/Quarantine | Hacked Alien Tech Used ----------------- High-powered Transdimensional Reconstructor Achievements -------------- King Drone Main Advantage No Explosion For You Prison Break Project G-00 Revising The Future Revolutionary Research Tester Challenges ------------ None Game ------ Seed BackupImpactRecalibrator Manual? 0 Play Time 04:55:51 Cumulative 125.7 hours Start 2026.04.13 @ 11:34:57 End 2026.04.13 @ 17:33:57 Sessions 3 Manual Loads 0 Difficulty Rogue Special Mode None Game No. 96 Rogue 96 Adventurer 0 Explorer 0 Win Type - Total 5 Types 3/0/1/1/0/0/0/0/0/0 Lore% 59 Gallery% 50 Achievement% 45 Wizard Run 0 Options --------- Layout 0 ASCII 0 Keyboard 1 Movement Arrows Keybinds 0 Fullscreen 2 Font 18/X11 Map View 76x50 Zoom Use 0% Tactical HUD 1 Map Filters NONE Filters NONE Steam 1 RUN: f6252d57-b9d8-485e-a2f4-89c3661c4f8f